bitfinex/quotes_ETHUSD_20240924
["timestamp","ask_amount","ask_price","bid_price","bid_amount"]
[1727190396560,4.64866,2616.0,2615.5,3.82335]
[1727190397268,4.64866,2616.0,2615.4,4.6368]
[1727190397477,4.03269928,2615.7,2615.2,3.82368]
[1727190397871,0.826,2615.7,2615.2,3.82368]
[1727190398580,4.64909,2615.7,2615.2,3.82368]
[1727190399608,0.826,2615.7,2615.3,3.82357]
[1727190400021,0.826,2615.7,2615.4,3.82337]
[1727190400311,0.826,2615.9,2615.6,3.82321]
[1727190400488,0.826,2615.9,2615.4,4.63685]
[1727190400811,0.826,2615.9,2615.5,3.82332]
[1727190401015,0.826,2615.9,2614.9,3.4850021]
[1727190401016,5.43440393,2615.9,2615.2,4.63719]
[1727190401171,3.82295,2615.8,2615.3,3.82358]
[1727190401378,4.64929,2615.6,2615.1,3.82393]
[1727190401608,1.99390593,2615.6,2615.0,3.82397]
[1727190401906,0.826,2615.6,2615.2,3.82379]
[1727190402113,0.826,2615.6,2615.0,3.82397]
[1727190402114,4.64926,2615.6,2615.1,3.82393]
[1727190402412,0.826,2615.6,2615.2,3.82379]
[1727190403341,4.64921,2615.6,2615.2,3.82379]
[1727190403508,3.82351,2615.4,2614.8,3.82428]
[1727190403710,3.82351,2615.4,2615.0,3.82406]
[1727190405506,3.82367,2615.3,2614.8,7.64859]
[1727190405711,0.826,2615.2,2614.8,3.82428]
[1727190406228,4.6498,2615.2,2614.8,3.82428]
[1727190408853,0.7796,2615.5,2614.8,0.4437857]
[1727190409037,0.7796,2615.5,2615.2,3.82378]
[1727190409230,7.29,2615.7,2615.4,3.8235]
[1727190409545,7.29,2615.7,2615.5,3.82327]
[1727190409744,7.29,2615.7,2615.4,3.8235]
[1727190410042,7.29,2615.7,2615.5,3.82332]
[1727190410408,7.29,2615.7,2615.4,3.8235]
[1727190411047,7.29,2615.7,2615.3,3.82363]
[1727190411356,7.29,2615.7,2615.4,3.8234]
[1727190411540,8.08904227,2615.7,2615.4,0.764703]
[1727190411742,8.08904227,2615.7,2615.5,3.82334]
[1727190412420,7.29,2615.7,2615.5,3.82334]
[1727190412631,7.29,2615.7,2615.4,0.764703]
[1727190412827,8.08904227,2615.7,2615.3,3.82354]
[1727190414056,4.62213227,2615.7,2615.2,3.82373]
[1727190414477,0.79904227,2615.7,2615.3,3.82364]
[1727190414933,5.5189724,2615.7,2615.1,7.98044283]
[1727190415135,1.6958824,2615.6,2615.2,0.33335144]
[1727190415331,2.4754824,2615.5,2615.2,0.33335144]
[1727190415533,1.69597865,2615.4,2615.2,0.66669923]
[1727190416041,0.79904227,2615.4,2615.2,0.33335144]
[1727190416560,1.69605591,2615.4,2615.2,0.33335144]
[1727190416767,0.79904227,2615.4,2615.2,0.33335144]
[1727190417127,1.69624232,2615.4,2615.2,0.33335144]
[1727190417457,0.79904227,2615.4,2615.2,0.33335144]
[1727190417647,1.69615845,2615.4,2615.2,0.33335144]
[1727190418156,0.79904227,2615.4,2615.2,0.33335144]
[1727190418612,0.79904227,2615.4,2615.3,3.82365]
[1727190418765,1.57864227,2615.5,2615.3,3.82365]
[1727190419314,0.79904227,2615.5,2615.4,3.8235]
[1727190419606,0.79904227,2615.7,2615.6,3.82321]
[1727190419761,0.79904227,2615.8,2615.6,3.82321]
[1727190420598,0.79904227,2615.7,2615.6,3.82321]
[1727190420900,0.79904227,2615.7,2615.6,5.0635317]
[1727190421078,0.79904227,2616.0,2615.9,3.82277]
[1727190421283,0.79904227,2616.2,2616.1,3.82248]
[1727190421483,0.83664667,2616.3,2616.2,3.82233]
[1727190421690,0.0376044,2616.3,2616.2,10.53463651]
[1727190422014,0.0376044,2616.3,2616.2,14.95808128]
[1727190422171,0.0376044,2616.3,2616.2,13.06030225]
[1727190422369,0.0376044,2616.3,2616.2,13.6715944]
[1727190423083,0.0376044,2616.3,2616.2,11.84443651]
[1727190423666,0.0376044,2616.3,2616.2,12.57470023]
[1727190423972,0.0376044,2616.3,2616.2,11.84443651]
[1727190424201,0.0376044,2616.3,2616.2,8.08773723]
[1727190424513,0.0376044,2616.3,2616.2,7.91472834]
[1727190424670,0.0376044,2616.3,2616.2,7.58213]
[1727190424870,0.0376044,2616.3,2616.2,3.82233]
[1727190427901,0.0376044,2616.3,2616.2,4.7511178]
[1727190428199,0.0376044,2616.3,2616.2,7.8573321]
[1727190428706,0.0376044,2616.3,2616.2,7.37233]
[1727190428868,0.0376044,2616.3,2616.2,6.82233]
[1727190429400,0.0376044,2616.3,2616.2,7.37233]
[1727190429635,0.0376044,2616.3,2616.2,54.70284508]
[1727190429808,0.0376044,2616.3,2616.2,50.23830508]
[1727190430106,0.0376044,2616.3,2616.2,41.63978308]
[1727190431303,0.0376044,2616.3,2616.2,41.97117121]
[1727190431493,0.0376044,2616.3,2616.2,42.30255023]
[1727190431800,0.0376044,2616.3,2616.2,41.97117121]
[1727190431966,0.0376044,2616.3,2616.2,41.63978308]
[1727190432383,0.0376044,2616.3,2616.2,41.19599738]
[1727190433405,0.0376044,2616.3,2616.2,37.9892981]
[1727190434122,0.0376044,2616.3,2616.2,12.26761708]
[1727190434333,0.0376044,2616.3,2616.2,35.58409408]
[1727190435003,0.0376044,2617.1,2617.0,3.82116]
[1727190436140,0.0376044,2617.1,2617.0,17.2402091]
[1727190437553,0.0376044,2617.1,2617.0,16.755207]
[1727190438724,0.0376044,2617.1,2617.0,17.2402091]
[1727190438925,0.0376044,2617.1,2617.0,17.6839948]
[1727190439637,0.0376044,2617.1,2617.0,16.755207]
[1727190439825,0.0376044,2617.1,2617.0,14.522709]
[1727190442440,0.0376044,2617.1,2617.0,15.4514968]
[1727190443442,0.0376044,2617.1,2617.0,15.0077111]
[1727190443654,0.0376044,2617.1,2617.0,7.37116]
[1727190443833,0.0376044,2617.1,2617.0,3.82116]
[1727190445366,0.0376044,2617.1,2617.0,17.517425]
[1727190445668,0.0376044,2617.1,2617.0,16.623297]
[1727190446166,0.0376044,2617.1,2617.0,17.173297]
[1727190446366,0.0376044,2617.1,2617.0,10.2825867]
[1727190446564,0.0376044,2617.1,2617.0,7.37116]
[1727190446730,0.0376044,2617.1,2617.0,12.419415]
[1727190447382,0.0376044,2617.1,2617.0,6.82116]
[1727190447672,0.0376044,2617.1,2616.3,0.9287878]
[1727190447673,0.8290044,2617.1,2616.3,0.9287878]
[1727190447832,0.8290044,2617.1,2616.7,3.82148]
[1727190448233,0.8290044,2617.1,2616.7,7.64301]
[1727190448462,0.8290044,2617.1,2616.7,3.82148]
[1727190450198,0.8290044,2617.1,2616.7,7.64301]
[1727190450383,0.8290044,2617.1,2616.7,3.82148]
[1727190450757,0.8290044,2617.1,2616.7,7.64301]
[1727190450953,0.8290044,2617.1,2616.7,3.82148]
[1727190451149,0.7511,2616.9,2616.6,3.0]
[1727190451352,0.7511,2616.9,2616.5,3.82181]
[1727190451575,0.7511,2616.9,2616.4,3.0]
[1727190451576,0.7511,2616.8,2616.4,6.82203]
[1727190451895,0.7511,2616.8,2616.4,3.0]
[1727190452053,0.7511,2616.8,2616.4,6.82201]
[1727190452263,1.208342,2616.8,2616.1,3.82243]
[1727190452600,1.208342,2616.8,2616.4,3.82202]
[1727190452798,0.7511,2616.8,2616.6,3.82174]
[1727190452978,0.7511,2617.0,2616.5,0.4437857]
[1727190453178,0.7511,2617.0,2616.8,3.82137]
[1727190453706,0.7511,2617.0,2616.8,7.64274]
[1727190453872,0.7511,2617.0,2616.8,3.82137]
[1727190456069,3.82131,2616.9,2616.7,3.0]
[1727190456313,3.82131,2616.9,2616.4,3.82194]
[1727190456314,0.7511,2617.0,2616.5,3.8218]
[1727190457283,0.7511,2617.0,2616.7,3.82158]
[1727190457479,0.7511,2617.0,2616.9,3.82131]
[1727190457697,0.0376044,2617.1,2616.8,3.82146]
[1727190458509,0.0376044,2617.1,2616.7,3.82158]
[1727190458815,0.7511,2617.0,2616.6,3.82173]
[1727190459184,4.57227,2617.0,2616.6,3.82173]
[1727190459373,0.7511,2617.0,2616.6,3.82173]
[1727190459568,0.7511,2617.0,2616.6,4.586015]
[1727190460274,0.7511,2617.0,2616.7,3.82157]
[1727190461205,0.7511,2617.0,2616.7,3.82152]
[1727190463012,0.7511,2617.0,2616.8,3.82138]
[1727190463511,0.7511,2617.0,2616.9,3.82131]
[1727190465574,0.7511,2617.0,2616.6,7.64331]
[1727190465786,0.7511,2617.0,2616.6,3.82164]
[1727190466312,0.7884,2616.8,2616.4,3.82204]
[1727190466484,0.7884,2616.8,2616.4,3.82195]
[1727190466689,0.7884,2616.8,2616.1,0.33255342]
[1727190466690,0.7884,2616.8,2616.6,3.82174]
[1727190467118,0.7884,2616.8,2616.7,3.8216]
[1727190467351,0.0376044,2617.1,2616.9,3.8213]
[1727190467798,0.0376044,2617.1,2617.0,3.82116]
[1727190471621,0.0376044,2617.1,2617.0,6.82116]
[1727190475023,0.0376044,2617.1,2617.0,8.12416]
[1727190475223,0.0376044,2617.1,2617.0,8.6717714]
[1727190475625,0.0376044,2617.1,2617.0,9.00448433]
[1727190476250,0.0376044,2617.1,2617.0,8.6717714]
[1727190476625,0.0376044,2617.1,2617.0,9.00448363]
[1727190476947,0.0376044,2617.1,2617.0,7.3687714]
[1727190480324,0.0376044,2617.1,2617.0,7.9187714]
[1727190480549,0.0376044,2617.1,2617.0,16.43804433]
[1727190480709,0.0376044,2617.1,2617.0,16.1056714]
[1727190481053,0.0376044,2617.1,2617.0,16.43785138]
[1727190481609,0.0376044,2617.1,2617.0,19.64142192]
[1727190482146,0.0376044,2617.1,2617.0,20.89761232]
[1727190482645,0.0376044,2617.1,2617.0,21.22969131]
[1727190482952,0.0376044,2617.1,2617.0,17.30103174]
[1727190483243,0.0376044,2617.1,2617.0,9.33604157]
[1727190483450,0.0376044,2617.1,2617.0,13.63811557]
[1727190484012,0.0376044,2617.1,2617.0,13.40242057]
[1727190484220,0.0376044,2617.1,2617.0,11.98611557]
[1727190484452,0.0376044,2617.1,2617.0,9.33604157]
[1727190484756,0.0376044,2617.1,2617.0,12.81093057]
[1727190484915,0.0376044,2617.1,2617.0,9.00386159]
[1727190485242,0.0376044,2617.1,2617.0,14.88355359]
[1727190485406,0.0376044,2617.1,2617.0,14.11755359]
[1727190485609,0.0376044,2617.1,2617.0,11.65224859]
[1727190485804,0.0376044,2617.1,2617.0,9.00386159]
[1727190486554,0.0376044,2617.1,2617.0,20.50619748]
[1727190486862,0.0376044,2617.1,2617.0,20.17410729]
[1727190488041,0.0376044,2617.1,2617.0,22.08832632]
[1727190489233,0.0376044,2617.1,2617.0,23.17266237]
[1727190489545,0.0376044,2617.1,2617.0,22.08832632]
[1727190489956,0.0376044,2617.1,2617.0,19.87737767]
[1727190490258,0.0376044,2617.1,2617.0,20.40678298]
[1727190490623,0.0376044,2617.1,2617.0,21.12962078]
[1727190490822,0.0376044,2617.1,2617.0,17.04353398]
[1727190491052,0.0376044,2617.1,2617.0,17.26660606]
[1727190491654,0.0376044,2617.1,2617.0,16.54354792]
[1727190491868,0.0376044,2617.1,2617.0,16.01406267]
[1727190492034,0.0376044,2617.1,2617.0,16.54352039]
[1727190492353,0.0376044,2617.1,2617.0,16.01406267]
[1727190492563,0.0376044,2617.1,2617.0,16.54333534]
[1727190492763,0.0376044,2617.1,2617.0,23.31126789]
[1727190493076,0.0376044,2617.9,2617.8,7.37]
[1727190493219,0.0376044,2617.9,2617.8,7.70092828]
[1727190493842,0.0376044,2617.9,2617.8,7.37]
[1727190497720,0.0376044,2617.9,2617.8,14.604118]
[1727190497924,0.0376044,2617.9,2617.8,10.522245]
[1727190498124,0.0376044,2617.9,2617.8,7.9176114]
[1727190498477,0.0376044,2617.9,2617.8,10.7581014]
[1727190498967,0.8190044,2617.9,2617.8,6.82]
[1727190499130,0.8190044,2617.9,2617.8,3.82]
[1727190499751,0.0376044,2617.9,2617.8,3.82]
[1727190500858,0.0376044,2617.9,2617.8,6.82]
[1727190506373,0.8190044,2617.9,2617.8,3.82]
[1727190507250,0.0376044,2617.9,2617.8,3.82]
[1727190507450,0.0376044,2617.9,2617.8,4.37]
[1727190507659,0.0376044,2617.9,2617.8,7.84374979]
[1727190508043,0.0376044,2617.9,2617.8,28.86957389]
[1727190508562,0.0376044,2617.9,2617.8,29.19931347]
[1727190508887,0.0376044,2617.9,2617.8,28.86957389]
[1727190509569,0.0376044,2617.9,2617.8,8.32875189]
[1727190509770,0.0376044,2617.9,2617.8,51.55633889]
[1727190509945,0.0376044,2617.9,2617.8,47.03423689]
[1727190512784,0.0376044,2617.9,2617.8,43.88154875]
[1727190513291,0.0376044,2617.9,2617.8,45.68239851]
[1727190513459,0.0376044,2617.9,2617.8,45.12939673]
[1727190514363,0.0376044,2617.9,2617.8,44.27225484]
[1727190514564,0.0376044,2617.9,2617.8,44.79977324]
[1727190514875,0.0376044,2617.9,2617.8,45.12947224]
[1727190515071,0.0376044,2617.9,2617.8,44.79977324]
[1727190515449,0.0376044,2617.9,2617.8,43.55192289]
[1727190515950,0.0376044,2618.6,2618.5,7.36898]
[1727190517855,0.0376044,2618.6,2618.5,44.462376]
[1727190518088,0.0376044,2618.6,2618.5,45.229376]
[1727190518295,0.0376044,2618.6,2618.5,46.03252485]
[1727190518585,0.0376044,2618.6,2618.5,45.70312579]
[1727190518989,0.0376044,2619.4,2619.3,10.57138054]
[1727190519187,0.0376044,2619.4,2619.3,17.74894954]
[1727190519351,0.0376044,2619.4,2619.3,18.98969933]
[1727190519748,0.0376044,2619.4,2619.3,21.17792774]
[1727190519972,0.0376044,2619.4,2619.3,19.3295628]
[1727190520192,0.0376044,2619.4,2619.3,18.9468628]
[1727190520396,0.0376044,2619.4,2619.3,11.7692938]
[1727190520688,0.0376044,2619.4,2619.3,59.8264558]
[1727190521265,0.0376044,2619.4,2619.3,45.9919908]
[1727190521482,0.0376044,2619.4,2619.3,42.4490918]
[1727190521792,0.0376044,2619.4,2619.3,42.47329615]
[1727190523267,0.0376044,2619.4,2619.3,42.01817854]
[1727190523591,0.0376044,2619.4,2619.3,33.84926815]
[1727190524655,0.0376044,2619.4,2619.3,28.77057776]
[1727190526985,0.0376044,2620.2,2620.1,11.35091054]
[1727190527157,0.0376044,2620.2,2620.1,11.78997853]
[1727190527358,0.0376044,2620.2,2620.1,45.74898353]
[1727190527564,0.0376044,2620.2,2620.1,24.34884153]
[1727190527792,0.0376044,2620.2,2620.1,25.66078693]
[1727190528174,0.0376044,2620.2,2620.1,24.34884153]
[1727190528874,0.7683,2620.8,2620.7,3.81577]
[1727190529077,12.2,2621.8,2620.8,7.36562]
[1727190529078,0.0443297,2620.9,2620.8,7.36562]
[1727190529404,0.0610269,2620.9,2620.8,7.36562]
[1727190529994,0.7683,2621.0,2620.9,3.81548]
[1727190530198,0.8293269,2621.0,2620.9,3.81548]
[1727190532603,0.0610269,2621.0,2620.9,3.81548]
[1727190535521,0.7683,2620.9,2620.8,3.0]
[1727190535671,0.7683,2620.9,2620.6,3.0]
[1727190536082,0.8293269,2620.9,2620.6,3.0]
[1727190536607,4.03289744,2620.9,2620.6,3.0]
[1727190536905,4.03289744,2620.9,2620.6,6.81583]
[1727190537205,4.03289744,2620.9,2620.6,3.0]
[1727190537411,4.03289744,2620.9,2620.6,6.81583]
[1727190537705,0.8293269,2620.9,2620.6,6.81583]
[1727190538079,0.8293269,2620.9,2620.6,3.0]
[1727190538283,4.03289744,2620.9,2620.4,6.81619]
[1727190538485,4.03289744,2620.9,2620.6,3.0]
[1727190539203,0.8293269,2620.9,2620.6,3.0]
[1727190539411,0.8293269,2620.9,2620.3,3.81626]
[1727190539412,0.7683,2620.7,2620.3,3.81625]
[1727190539580,0.7683,2620.7,2620.5,3.81605]
[1727190539774,0.7683,2620.7,2620.5,7.63203]
[1727190539973,0.7683,2620.7,2620.5,3.81598]
[1727190541214,0.7683,2620.7,2620.6,3.81592]
[1727190541512,0.0610269,2620.9,2620.6,3.81592]
[1727190541513,0.0610269,2620.9,2620.8,3.81562]
[1727190542112,0.0610269,2620.9,2620.8,6.81562]
[1727190543024,0.0610269,2620.9,2620.8,7.21942122]
[1727190543212,0.0610269,2620.9,2620.8,7.76942122]
[1727190543388,0.0610269,2620.9,2620.8,8.31814162]
[1727190545036,0.0610269,2620.9,2620.8,19.73116916]
[1727190545187,0.8258297,2621.8,2621.2,3.55]
[1727190545384,0.8258297,2621.8,2621.5,3.81446]
[1727190545708,0.8258297,2621.8,2621.4,3.81475]
[1727190545709,0.7815,2621.5,2621.4,3.81475]
[1727190545884,0.7815,2621.5,2621.0,3.0]
[1727190546084,3.20357054,2621.4,2621.1,3.81517]
[1727190546291,3.20357054,2621.4,2620.9,6.81541]
[1727190546485,0.7815,2621.1,2620.8,3.8156]
[1727190546926,3.20357054,2621.0,2620.8,3.8156]
[1727190547629,3.20357054,2621.0,2620.6,3.81578]
[1727190547922,0.7815,2620.9,2620.7,3.81567]
[1727190548983,0.7815,2621.2,2620.7,4.197237]
[1727190549185,0.7815,2621.7,2621.5,3.81458]
[1727190549586,0.7815,2621.7,2621.3,3.8148]
[1727190549798,3.98507054,2621.7,2621.3,3.8148]
[1727190550001,1.18444002,2621.7,2621.4,3.81471]
[1727190550243,3.98507054,2621.7,2620.8,0.92754646]
[1727190550543,3.81435,2621.7,2621.1,3.81505]
[1727190550745,0.7815,2621.5,2621.2,3.81504]
[1727190551111,0.7815,2621.5,2620.9,3.81538]
[1727190551306,0.7815,2621.3,2620.9,3.81538]
[1727190551532,3.20357054,2621.0,2620.5,3.81598]
[1727190551731,0.7815,2620.9,2620.8,3.81562]
[1727190553005,0.7815,2621.4,2621.0,3.81528]
[1727190553208,0.7815,2621.4,2621.2,3.81496]
[1727190553510,0.7815,2621.7,2620.9,0.57583543]
[1727190553709,0.7815,2621.7,2621.4,3.81466]
[1727190553943,0.7815,2621.7,2620.9,4.76882189]
[1727190553944,0.7815,2621.7,2621.6,3.81446]
[1727190554150,0.7815,2621.7,2621.5,3.8146]
[1727190554308,0.7815,2621.7,2621.4,3.81475]
[1727190554515,0.7815,2621.7,2621.4,3.8147]
[1727190554813,0.7815,2621.7,2621.3,3.81485]
[1727190555013,0.7815,2621.7,2621.5,3.8146]
[1727190555438,0.7815,2621.7,2621.5,7.62909]
[1727190556225,0.0443297,2621.8,2621.7,3.81431]
[1727190556745,0.0443297,2621.8,2621.4,3.81467]
[1727190556936,0.0443297,2621.8,2621.7,3.81431]
[1727190557648,0.0443297,2621.8,2621.2,0.7728]
[1727190557649,0.0443297,2621.8,2621.6,3.81444]
[1727190557964,0.0443297,2621.8,2621.0,3.47688219]
[1727190557965,0.7815,2621.4,2620.9,3.81544]
[1727190558265,0.7815,2621.4,2620.8,3.81549]
[1727190558266,0.459619,2621.3,2620.8,3.81549]
[1727190558417,0.7815,2621.3,2620.8,3.81549]
[1727190558851,4.59641,2621.3,2620.8,3.81549]
[1727190559053,4.59641,2621.3,2620.7,3.81575]
[1727190559358,2.01570509,2621.3,2620.8,3.81549]
[1727190559516,0.7815,2621.3,2620.8,3.81549]
[1727190560357,0.7815,2621.0,2620.5,3.81604]
[1727190560654,0.7815,2621.0,2620.6,3.81584]
[1727190560955,0.7815,2621.0,2620.2,3.0]
[1727190560956,0.7815,2621.0,2620.8,3.8156]
[1727190561145,0.7815,2621.0,2620.8,3.81553]
[1727190561945,0.7815,2621.0,2620.9,3.81548]
[1727190562553,0.7815,2621.0,2620.8,3.81553]
[1727190563538,0.7815,2621.0,2620.7,3.81575]
[1727190563820,0.7815,2621.0,2620.5,3.81596]
[1727190564125,0.7815,2621.0,2620.2,3.7728]
[1727190564126,0.7815,2620.7,2620.3,3.81626]
[1727190564536,0.7815,2620.7,2620.2,3.0]
[1727190564737,0.7815,2620.9,2620.6,3.81592]
[1727190564951,0.7815,2620.9,2620.4,4.58895]
[1727190564952,1.33263032,2620.9,2620.4,3.81615]
[1727190565143,4.71226094,2620.8,2620.2,3.8164]
[1727190565328,0.7815,2620.7,2620.2,7.63281]
[1727190565548,0.7815,2620.7,2620.2,3.81638]
[1727190565740,0.7815,2620.7,2620.3,3.81633]
[1727190565956,0.7815,2620.7,2620.2,7.63279]
[1727190566133,0.7815,2620.7,2620.3,3.81632]
[1727190566469,0.7815,2620.7,2620.2,3.81638]
[1727190566670,0.7815,2620.7,2620.2,7.63279]
[1727190566870,0.7815,2620.7,2620.2,3.81638]
[1727190567341,0.7815,2620.7,2620.2,7.6328]
[1727190567545,0.7815,2620.7,2620.3,3.81627]
[1727190567854,0.7815,2620.7,2619.8,3.7728]
[1727190568052,0.7815,2620.7,2620.4,3.81611]
[1727190568230,0.7815,2620.7,2619.8,0.7728]
[1727190568437,0.7815,2620.7,2620.3,3.81635]
[1727190569031,0.7815,2620.7,2620.4,3.81612]
[1727190570185,0.7815,2620.7,2620.5,3.81599]
[1727190570673,0.7815,2620.7,2620.4,3.81616]
[1727190570971,2.29511587,2620.7,2620.3,3.81623]
[1727190571143,1.58054227,2620.7,2620.4,3.81612]
[1727190571346,1.58054227,2620.7,2620.4,7.63225]
[1727190571543,1.58054227,2620.7,2620.4,3.81612]
[1727190572163,0.79904227,2620.7,2619.8,4.58981]
[1727190572384,3.19631278,2620.2,2620.1,3.81664]
[1727190574285,2.16986484,2620.6,2620.2,3.81648]
[1727190574286,3.19631278,2620.4,2620.2,3.81648]
[1727190574842,3.19631278,2620.4,2619.7,6.81719]
[1727190574843,0.7895,2620.4,2619.9,3.81686]
[1727190575047,0.7895,2620.4,2619.7,3.0]
[1727190575048,0.7895,2620.0,2619.7,3.0]
[1727190575347,3.19631278,2619.9,2619.7,3.0]
[1727190575548,0.7895,2620.0,2619.7,3.0]
[1727190575549,3.98581278,2620.0,2619.7,3.0]
[1727190575967,1.58854227,2620.4,2619.9,3.81687]
[1727190576291,4.78485505,2620.4,2619.9,3.81687]
[1727190576499,3.19631278,2620.1,2619.8,3.0]
[1727190576987,0.7895,2619.9,2619.2,11.94105]
[1727190577287,3.19631278,2619.5,2619.2,11.94105]
[1727190577691,4.60644,2619.9,2619.2,11.94105]
[1727190577981,3.81709,2619.8,2619.2,7.37]
[1727190578174,3.19631278,2619.6,2619.2,7.37]
[1727190578361,3.19631278,2619.6,2619.3,3.81781]
[1727190578556,0.7895,2619.7,2619.3,3.81781]
[1727190578760,0.7895,2619.7,2619.4,3.81758]
[1727190579507,0.7895,2619.7,2619.5,3.81751]
[1727190579849,0.7895,2619.7,2619.4,3.81765]
[1727190580762,0.7895,2619.7,2619.3,3.8177]
[1727190581196,0.7895,2619.7,2619.5,3.81751]
[1727190581555,0.7895,2619.7,2619.4,3.81764]
[1727190582249,0.7895,2619.7,2619.3,3.8177]
[1727190582661,0.7895,2619.7,2619.4,3.81756]
[1727190582996,0.7895,2619.9,2619.6,3.81737]
[1727190583202,0.7895,2619.9,2619.4,3.81757]
[1727190583709,0.7895,2619.9,2619.5,3.81748]
[1727190583989,0.7895,2619.9,2619.4,7.63512]
[1727190584180,0.7895,2619.9,2619.4,4.656382]
[1727190584375,0.7895,2619.9,2619.4,3.81755]
[1727190584675,0.7895,2619.5,2619.2,3.81788]
[1727190584849,0.7895,2619.5,2619.2,3.0]
[1727190585256,3.19631278,2619.4,2619.2,3.0]
[1727190586002,0.7925,2619.9,2619.2,0.681806]
[1727190586300,0.7925,2620.0,2619.5,3.81745]
[1727190586480,3.98881278,2620.0,2619.5,4.580965]
[1727190586681,3.98881278,2620.0,2619.5,3.81745]
[1727190587054,3.98881278,2620.0,2619.6,3.81736]
[1727190587255,3.98881278,2620.0,2619.5,3.81746]
[1727190587483,3.98881278,2620.0,2619.6,3.81735]
[1727190588372,3.98881278,2620.0,2619.5,3.81744]
[1727190588770,0.7925,2620.3,2619.9,3.81692]
[1727190588975,0.7925,2620.3,2620.0,3.81677]
[1727190589499,0.7925,2620.3,2620.2,3.8165]
[1727190590069,0.7925,2620.3,2620.1,3.81664]
[1727190590796,0.7925,2620.6,2620.2,3.8165]
[1727190591961,0.7925,2620.6,2620.0,3.81671]
[1727190592155,3.19631278,2620.4,2619.9,3.81683]
[1727190592368,0.7925,2620.3,2619.9,3.81683]
[1727190592692,0.7925,2620.3,2620.0,3.81677]
[1727190593093,0.7925,2620.3,2619.9,3.81683]
[1727190593286,0.7925,2620.3,2620.0,3.81678]
[1727190593481,0.7925,2620.3,2620.2,3.8165]
[1727190593791,3.19631278,2620.4,2620.2,3.8165]
[1727190594557,3.19631278,2620.4,2620.3,3.81635]
[1727190594763,0.7925,2620.5,2619.8,3.81706]
[1727190594764,0.7925,2620.5,2620.4,3.81621]
[1727190594957,0.7925,2620.5,2620.0,0.806]
[1727190595191,0.7925,2620.5,2620.4,3.81621]
[1727190595363,3.19631278,2620.7,2620.6,3.81592]
[1727190596197,0.7925,2620.8,2620.6,3.81592]
[1727190596964,0.7925,2620.8,2620.7,3.81577]
[1727190597504,0.7925,2620.8,2620.6,3.81583]
[1727190597714,0.7925,2620.8,2620.7,3.81577]
[1727190598740,3.19631278,2621.0,2620.9,3.81548]
[1727190599116,0.7925,2621.1,2620.9,3.81548]
[1727190599313,3.98881278,2621.1,2620.9,3.81548]
[1727190599725,4.46759829,2621.1,2620.4,0.806]
[1727190599943,3.98881278,2620.6,2620.1,0.806]
[1727190600152,3.98881278,2620.6,2620.3,3.81635]
[1727190600451,0.7925,2620.3,2619.3,8.176]
[1727190600602,3.19631278,2619.6,2619.3,3.81771]
[1727190601038,3.19631278,2619.6,2619.5,3.81752]
[1727190601240,0.7925,2619.7,2619.5,3.81752]
[1727190601609,0.7925,2619.7,2619.5,3.81744]
[1727190602451,0.831,2620.0,2619.5,4.580957]
[1727190602654,0.831,2620.0,2619.7,7.63433]
[1727190602826,0.831,2620.0,2619.7,3.81713]
[1727190603563,5.01485341,2620.4,2620.1,3.81664]
[1727190603564,0.831,2620.4,2620.1,3.81664]
[1727190603721,0.831,2620.4,2620.3,3.81635]
[1727190603929,0.79904227,2620.7,2620.4,3.81621]
[1727190604129,0.79904227,2620.7,2620.4,3.81613]
[1727190604434,5.96492751,2620.9,2620.4,3.81613]
[1727190604435,0.79904227,2620.8,2620.4,3.81612]
[1727190604768,0.79904227,2620.8,2620.4,4.197712]
[1727190604938,1.63004227,2620.9,2620.5,3.81594]
[1727190605855,1.63004227,2620.9,2620.3,3.81631]
[1727190605856,5.56540637,2620.9,2620.3,3.81623]
[1727190606028,0.79904227,2620.8,2620.4,3.81617]
[1727190606223,0.79904227,2620.8,2620.3,3.81634]
[1727190606727,4.61469227,2620.8,2620.1,3.81655]
[1727190606927,0.79904227,2620.8,2620.3,3.81634]
[1727190607242,0.79904227,2620.7,2620.3,3.81634]
[1727190607438,0.79904227,2620.8,2620.3,3.81634]
[1727190607759,0.79904227,2620.7,2620.3,3.81634]
[1727190607963,0.79904227,2620.8,2620.3,3.81634]
[1727190608258,0.79904227,2620.7,2620.3,3.81634]
[1727190608423,1.99760568,2620.8,2620.3,3.81634]
[1727190608623,0.79904227,2620.8,2620.4,3.81612]
[1727190608852,0.79904227,2620.7,2620.4,3.81612]
[1727190609068,0.79904227,2620.7,2620.3,3.81625]
[1727190609362,0.79904227,2620.8,2620.5,7.63194]
[1727190609750,0.79904227,2620.8,2620.5,3.81596]
[1727190609949,0.79904227,2620.8,2620.3,3.81632]
[1727190610161,0.79904227,2620.7,2620.3,3.81626]
[1727190610337,0.79904227,2620.7,2620.4,3.8162]
[1727190611367,0.79904227,2620.8,2620.4,3.8162]
[1727190611662,0.79904227,2620.7,2620.5,3.81606]
[1727190611840,0.79904227,2620.7,2620.4,3.8162]
[1727190612035,0.79904227,2620.7,2620.3,3.81626]
[1727190612452,0.79904227,2620.7,2620.4,3.81617]
[1727190612730,0.79904227,2620.8,2620.3,3.81626]
[1727190612930,0.79904227,2620.8,2620.2,3.81641]
[1727190613269,0.79904227,2620.7,2620.4,7.63225]
[1727190613464,0.79904227,2620.7,2620.4,3.81612]
[1727190613832,0.79904227,2620.7,2620.4,7.63225]
[1727190614059,0.79904227,2620.7,2620.4,3.81612]
[1727190614264,0.831,2620.6,2620.2,3.81641]
[1727190614568,0.831,2620.6,2620.3,3.81635]
[1727190614569,1.63004227,2620.6,2620.3,3.81635]
[1727190615570,1.63004227,2620.6,2620.4,3.81614]
[1727190616562,1.63004227,2620.6,2620.1,3.81654]
[1727190616768,1.63004227,2620.6,2620.2,3.81648]
[1727190616965,0.831,2620.6,2620.2,3.81648]
[1727190617349,1.63004227,2620.6,2620.2,3.81648]
[1727190617569,1.63004227,2620.6,2619.8,3.817]
[1727190617570,0.831,2620.3,2619.8,3.817]